fUSD/lending_fUSD_20260531
["ID","MTS","AMOUNT","RATE_DAILY","PERIOD"]
[423535934,1780200650000,-220.83,0.00029,2]
[423535932,1780200650000,-200.0,0.00029,10]
[423535936,1780200650000,-156.0,0.00029,2]
[423535939,1780200650000,-154.99987017,0.00029,2]
[423535949,1780200650000,-796.42,0.00029167,7]
[423535938,1780200650000,-334.48622721,0.00029,2]
[423535943,1780200650000,-150.0,0.00029055,2]
[423535942,1780200650000,-1000.0,0.00029,2]
[423535940,1780200650000,-5115.0,0.00029,2]
[423535945,1780200650000,-2114.45684397,0.00029151,2]
[423535944,1780200650000,-300.0,0.000291,10]
[423535941,1780200650000,-2430.56,0.00029,2]
[423535946,1780200650000,-167.0,0.00029155,31]
[423535947,1780200650000,-2114.45684397,0.00029158,2]
[423535948,1780200650000,-560.19,0.00029167,7]
[423535950,1780200650000,-827.49,0.00029168,7]
[423535951,1780200650000,-1176.45,0.00029168,7]
[423535953,1780200650000,-756.05,0.000292,7]
[423535957,1780200650000,-200.0,0.00029214,2]
[423535985,1780200650000,-1942.85201059,0.00029501,64]
[423535980,1780200650000,-386.0,0.00029475,2]
[423536045,1780200650000,-507.0,0.00029587,10]
[423536021,1780200650000,-585.0,0.0002952,6]
[423536019,1780200650000,-200.0,0.00029506,2]
[423536020,1780200650000,-200.0,0.00029506,2]
[423536023,1780200650000,-386.0,0.0002954,2]
[423536022,1780200650000,-464.67628455,0.00029526,2]
[423536025,1780200650000,-385.0,0.00029545,2]
[423536027,1780200650000,-156.55021064,0.0002956,2]
[423536029,1780200650000,-199.97411724,0.0002956,2]
[423536031,1780200650000,-216.65782518,0.0002956,2]
[423536032,1780200650000,-385.0,0.00029562,2]
[423536036,1780200650000,-183.83833949,0.00029573,2]
[423536037,1780200650000,-175.12567838,0.00029573,2]
[423536028,1780200650000,-197.26248715,0.0002956,2]
[423536030,1780200650000,-211.6814426,0.0002956,2]
[423536034,1780200650000,-209.69705719,0.00029565,2]
[423536035,1780200650000,-161.68186306,0.00029565,2]
[423536033,1780200650000,-152.93759065,0.00029565,2]
[423536038,1780200650000,-199.364128,0.00029573,2]
[423536039,1780200650000,-150.35296331,0.00029573,2]
[423536042,1780200650000,-151.26785208,0.00029573,2]
[423536041,1780200650000,-210.90237332,0.00029573,2]
[423536040,1780200650000,-164.82035568,0.00029573,2]
[423536043,1780200650000,-218.19106943,0.00029573,2]
[423536044,1780200650000,-211.75013923,0.0002958,2]
[423535982,1780200650000,-862.91806721,0.00029501,64]
[423536047,1780200650000,-414.49691019,0.00029597,2]
[423536046,1780200650000,-955.4,0.00029594,7]
[423536018,1780200650000,-156.54338405,0.00029501,64]
[423536015,1780200650000,-489.37476177,0.00029501,64]
[423536026,1780200650000,-232.67491165,0.0002956,2]
[423536024,1780200650000,-385.0,0.00029542,2]
[423535989,1780200650000,-2142.57945826,0.00029501,64]
[423536013,1780200650000,-475.7440664,0.00029501,64]
[423535988,1780200650000,-2142.57945826,0.00029501,64]
[423535994,1780200650000,-2884.11636359,0.00029501,64]
[423535991,1780200650000,-2342.30690601,0.00029501,64]
[423535998,1780200650000,-154.58672146,0.00029501,64]
[423535995,1780200650000,-2884.11636359,0.00029501,64]
[423535996,1780200650000,-151.72905354,0.00029501,64]
[423535997,1780200650000,-151.72905354,0.00029501,64]
[423535990,1780200650000,-2342.30690601,0.00029501,64]
[423535993,1780200650000,-2532.69426936,0.00029501,64]
[423535992,1780200650000,-2532.69426936,0.00029501,64]
[423536001,1780200650000,-155.32545051,0.00029501,64]
[423536000,1780200650000,-155.32545051,0.00029501,64]
[423535999,1780200650000,-154.58672146,0.00029501,64]
[423536012,1780200650000,-475.7440664,0.00029501,64]
[423536004,1780200650000,-156.30317863,0.00029501,64]
[423536016,1780200650000,-525.41381909,0.00029501,64]
[423536014,1780200650000,-489.37476177,0.00029501,64]
[423536009,1780200650000,-418.31276659,0.00029501,64]
[423536007,1780200650000,-251.81539881,0.00029501,64]
[423536006,1780200650000,-251.81539881,0.00029501,64]
[423536017,1780200650000,-525.41381909,0.00029501,64]
[423536011,1780200650000,-454.48882514,0.00029501,64]
[423536010,1780200650000,-454.48882514,0.00029501,64]
[423536002,1780200650000,-156.04121412,0.00029501,64]
[423536008,1780200650000,-418.31276659,0.00029501,64]
[423536003,1780200650000,-156.04121412,0.00029501,64]
[423536005,1780200650000,-156.30317863,0.00029501,64]
[423536083,1780200651000,-190.0,0.00029645,30]
[423536076,1780200651000,-319.2588883,0.0002961,2]
[423536086,1780200651000,-497.0,0.00029645,30]
[423536085,1780200651000,-154.0,0.00029645,30]
[423536080,1780200651000,-333.57229836,0.0002961,2]
[423536081,1780200651000,-385.0,0.00029628,2]
[423536082,1780200651000,-2110.0,0.0002963,2]
[423536078,1780200651000,-327.87657695,0.0002961,2]
[423536077,1780200651000,-321.38742981,0.0002961,2]
[423536084,1780200651000,-286.0,0.00029645,30]
[423536087,1780200651000,-437.0,0.00029645,30]
[423536089,1780200651000,-156.0,0.00029645,30]
[423536097,1780200651000,-1000.0,0.000297,7]
[423536101,1780200651000,-385.0,0.00029749,2]
[423536099,1780200651000,-385.0,0.0002971,2]
[423536088,1780200651000,-197.0,0.00029645,30]
[423536090,1780200651000,-296.0,0.00029652,30]
[423536093,1780200651000,-669.0,0.00029652,30]
[423536095,1780200651000,-2166.0,0.00029652,30]
[423536096,1780200651000,-386.0,0.00029676,2]
[423536091,1780200651000,-189.0,0.00029652,30]
[423536094,1780200651000,-265.0,0.00029652,30]
[423536098,1780200651000,-386.0,0.00029707,2]
[423536102,1780200651000,-385.0,0.00029755,2]
[423536079,1780200651000,-317.96304338,0.0002961,2]
[423536100,1780200651000,-386.0,0.00029744,2]
[423536075,1780200651000,-348.27296071,0.0002961,2]
[423536104,1780200651000,-386.0,0.00029778,2]
[423536073,1780200651000,-308.46017489,0.0002961,2]
[423536048,1780200651000,-448.25224564,0.00029597,2]
[423536050,1780200651000,-535.07901166,0.00029598,2]
[423536049,1780200651000,-315.69330982,0.00029597,2]
[423536060,1780200651000,-557.66268738,0.0002961,2]
[423536061,1780200651000,-306.74317406,0.0002961,2]
[423536051,1780200651000,-1516.649607,0.000296,2]
[423536052,1780200651000,-386.0,0.00029601,2]
[423536053,1780200651000,-350.23384827,0.0002961,2]
[423536054,1780200651000,-451.13749586,0.0002961,2]
[423536056,1780200651000,-407.57432277,0.0002961,2]
[423536055,1780200651000,-419.11538079,0.0002961,2]
[423536057,1780200651000,-372.03787479,0.0002961,2]
[423536058,1780200651000,-364.77601562,0.0002961,2]
[423536059,1780200651000,-506.11241745,0.0002961,2]
[423536066,1780200651000,-359.06936621,0.0002961,2]
[423536062,1780200651000,-314.73218316,0.0002961,2]
[423536064,1780200651000,-527.03465981,0.0002961,2]
[423536065,1780200651000,-346.35677558,0.0002961,2]
[423536068,1780200651000,-358.75663056,0.0002961,2]
[423536070,1780200651000,-306.81156304,0.0002961,2]
[423536069,1780200651000,-368.06338641,0.0002961,2]
[423536067,1780200651000,-333.14701536,0.0002961,2]
[423536071,1780200651000,-402.8989943,0.0002961,2]
[423536063,1780200651000,-368.7453436,0.0002961,2]
[423536072,1780200651000,-373.46387652,0.0002961,2]
[423536074,1780200651000,-349.02888824,0.0002961,2]
[423536105,1780200651000,-385.0,0.00029791,2]
[423536092,1780200651000,-161.0,0.00029652,30]
[423536103,1780200651000,-386.0,0.00029759,2]
[423536134,1780200651000,-1356.0,0.00029999,2]
[423536140,1780200651000,-7579.71593055,0.0003,2]
[423536132,1780200651000,-150.0,0.00029999,2]
[423536136,1780200651000,-525.0,0.00029999,2]
[423536135,1780200651000,-3550.0,0.00029999,2]
[423536143,1780200651000,-312.14746088,0.0003,2]
[423536147,1780200651000,-350.0,0.00030009,2]
[423536144,1780200651000,-650.0,0.0003,2]
[423536150,1780200651000,-350.0,0.0003001,2]
[423536142,1780200651000,-251.75313033,0.0003,7]
[423536148,1780200651000,-165.0,0.0003001,30]
[423536149,1780200651000,-187.54253068,0.0003001,30]
[423536131,1780200651000,-150.0,0.00029999,2]
[423536151,1780200651000,-385.0,0.00030015,2]
[423536146,1780200651000,-480.87,0.0003,7]
[423536153,1780200651000,-27639.370137,0.0003003,2]
[423536152,1780200651000,-240.38580976,0.0003003,2]
[423536155,1780200651000,-385.0,0.00030032,2]
[423536154,1780200651000,-182.51223947,0.0003003,2]
[423536157,1780200651000,-364.4,0.00030082,120]
[423536156,1780200651000,-585.0,0.00030075,7]
[423536159,1780200651000,-350.0,0.00030091,2]
[423536160,1780200651000,-756.05,0.000301,7]
[423536158,1780200651000,-790.42,0.00030082,120]
[423536161,1780200651000,-461.63,0.000301,7]
[423536106,1780200651000,-2877.36930003,0.00029797,6]
[423536145,1780200651000,-300.0,0.0003,30]
[423536137,1780200651000,-1273.0,0.00029999,2]
[423536130,1780200651000,-150.0,0.00029999,2]
[423536139,1780200651000,-418.0,0.00029999,2]
[423536107,1780200651000,-10000.0,0.00029829,2]
[423536108,1780200651000,-153.80363737,0.00029829,2]
[423536109,1780200651000,-386.0,0.00029837,2]
[423536113,1780200651000,-385.0,0.00029868,2]
[423536110,1780200651000,-386.0,0.0002985,2]
[423536162,1780200651000,-504.65672223,0.000301,2]
[423536114,1780200651000,-385.0,0.00029872,2]
[423536111,1780200651000,-386.0,0.00029854,2]
[423536138,1780200651000,-1226.0,0.00029999,2]
[423536124,1780200651000,-385.0,0.00029964,2]
[423536126,1780200651000,-150.0,0.00029999,2]
[423536125,1780200651000,-150.0,0.00029999,2]
[423536127,1780200651000,-150.0,0.00029999,2]
[423536112,1780200651000,-7193.59,0.00029865,2]
[423536128,1780200651000,-150.0,0.00029999,2]
[423536141,1780200651000,-251.75313033,0.0003,7]
[423536115,1780200651000,-7536.9238433,0.00029877,2]
[423536129,1780200651000,-150.0,0.00029999,2]
[423536122,1780200651000,-386.0,0.00029962,2]
[423536118,1780200651000,-386.0,0.00029914,2]
[423536133,1780200651000,-928.0,0.00029999,2]
[423536116,1780200651000,-800.0,0.000299,10]
[423536123,1780200651000,-385.0,0.00029963,2]
[423536120,1780200651000,-385.0,0.00029933,2]
[423536121,1780200651000,-2792.60588015,0.00029961,2]
[423536117,1780200651000,-385.0,0.00029912,2]
[423536119,1780200651000,-385.0,0.00029927,2]
[423536176,1780200652000,-921115.63880427,0.0003013,7]
[423536175,1780200652000,-1130.69503016,0.00030129,15]
[423536166,1780200652000,-541.8122188,0.000301,2]
[423536174,1780200652000,-151.0,0.00030127,7]
[423536163,1780200652000,-504.65672223,0.000301,2]
[423536167,1780200652000,-541.8122188,0.000301,2]
[423536164,1780200652000,-200.0,0.000301,2]
[423536165,1780200652000,-1500.0,0.000301,2]
[423536169,1780200652000,-636.59752961,0.000301,2]
[423536171,1780200652000,-385.0,0.00030112,2]
[423536172,1780200652000,-386.0,0.00030117,2]
[423536185,1780200652000,-668.03,0.0003013,7]
[423536168,1780200652000,-636.59752961,0.000301,2]
[423536173,1780200652000,-151.0,0.00030127,7]
[423536184,1780200652000,-584.10065788,0.0003013,7]
[423536180,1780200652000,-205.35634656,0.0003013,2]
[423536181,1780200652000,-302.21958488,0.0003013,2]
[423536183,1780200652000,-417320.39931221,0.0003013,7]
[423536179,1780200652000,-645.52416498,0.0003013,2]
[423536177,1780200652000,-1093.12497708,0.0003013,2]
[423536178,1780200652000,-14105.60847319,0.0003013,2]
[423536170,1780200652000,-1954.0,0.0003011,2]
[423536182,1780200652000,-15055.15554814,0.0003013,2]
[423536192,1780200653000,-106.89174004,8.169e-05,2]
[423536187,1780200653000,-500.0,0.00013698,2]
[423536188,1780200653000,-500.0,0.00013828,2]
[423536186,1780200653000,-500.0,0.00013698,2]
[423536189,1780200653000,-500.0,0.00018689,2]
[423536191,1780200653000,-500.0,8.169e-05,2]
[423536194,1780200653000,-253.67827096,8.169e-05,2]
[423536190,1780200653000,-350.78243123,0.00020957,2]
[423536199,1780200653000,-426.24,0.00021258,2]
[423536193,1780200653000,-393.10825996,8.169e-05,2]
[423536198,1780200653000,-500.0,0.00021258,2]
[423536196,1780200653000,-156.0,0.00021,2]
[423536200,1780200653000,-249.53158175,0.00021273,2]
[423536197,1780200653000,-500.0,0.00021258,2]
[423536201,1780200653000,-418.59592938,0.00021273,2]
[423536195,1780200653000,-149.21756877,0.00020957,2]
[423536202,1780200797000,-10000.01,0.00021273,2]
[423536203,1780200797000,-250.0,0.00011436,2]
[423536204,1780200797000,-500.0,0.0001258,2]
[423536206,1780200797000,-300.0,0.00016355,2]
[423536207,1780200797000,-2500.0,0.00016355,2]
[423536208,1780200797000,-500.0,0.00018276,2]
[423536205,1780200797000,-500.0,0.00013895,2]
[423536211,1780200798000,-300.0,0.00020317,2]
[423536209,1780200798000,-500.0,0.00018276,2]
[423536210,1780200798000,-500.0,0.00018276,2]
[423536219,1780200798000,-1859.21027354,0.00020317,2]
[423536213,1780200798000,-300.0,0.00020317,2]
[423536214,1780200798000,-409.22027354,0.00020317,2]
[423536215,1780200798000,-2500.0,0.00020317,2]
[423536216,1780200798000,-640.78972646,0.00020317,2]
[423536217,1780200798000,-300.40118856,0.0001258,2]
[423536218,1780200798000,-245.0,0.0002,2]
[423536221,1780200798000,-2500.0,0.00020317,2]
[423536212,1780200798000,-300.0,0.00020317,2]
[423536220,1780200798000,-2500.0,0.00020317,2]
[423536231,1780200798000,-245.0,0.00024,2]
[423536232,1780200798000,-289.23851085,0.00024658,2]
[423536228,1780200798000,-245.0,0.00023,2]
[423536230,1780200798000,-158.07026131,0.00024,2]
[423536229,1780200798000,-592.45866025,0.00023874,2]
[423536225,1780200798000,-245.0,0.00022,2]
[423536226,1780200798000,-194.45861662,0.00022834,3]
[423536222,1780200798000,-245.0,0.00021,2]
[423536224,1780200798000,-156.0,0.00022,2]
[423536223,1780200798000,-69.17248887,0.00021273,2]
[423536227,1780200798000,-156.0,0.00023,2]
[423536240,1780200799000,-705.84,0.00025572,7]
[423536233,1780200799000,-416.60148915,0.00024658,2]
[423536235,1780200799000,-261.0,0.00025,2]
[423536234,1780200799000,-705.84,0.00024886,7]
[423536238,1780200799000,-7388.72851085,0.00025147,2]
[423536236,1780200799000,-705.84,0.00025115,30]
[423536239,1780200799000,-705.84,0.00025343,2]
[423536237,1780200799000,-522.0,0.00025147,2]
[423536243,1780200799000,-932.0,0.00025869,2]
[423536241,1780200799000,-705.84,0.000258,30]
[423536248,1780200799000,-488.13,0.00026943,7]
[423536247,1780200799000,-705.84,0.00026714,2]
[423536246,1780200799000,-705.84,0.00026486,30]
[423536244,1780200799000,-705.84,0.00026029,2]
[423536242,1780200799000,-3639.0,0.00025869,2]
[423536245,1780200799000,-705.84,0.00026257,7]
[423536253,1780200800000,-217.71,0.00026943,7]
[423536254,1780200800000,-606.26904267,0.00027171,30]
[423536252,1780200800000,-200.0,0.00026428,2]
[423536250,1780200800000,-8178.03095733,0.000219,2]
[423536251,1780200800000,-798.0,0.00022068,2]
[423536265,1780200801000,-459.643322,0.00027397,2]
[423536264,1780200801000,-1500.0,0.00027397,2]
[423536261,1780200801000,-99.57095733,0.00027171,30]
[423536263,1780200801000,-154.0,0.00027329,30]
[423536262,1780200801000,-190.94551754,0.000273,30]
[423536258,1780200801000,-154.0,0.0002626,2]
[423536259,1780200801000,-200.0,0.00026372,2]
[423536257,1780200801000,-154.0,0.00025726,30]
[423536255,1780200801000,-154.0,0.00024658,2]
[423536256,1780200801000,-154.0,0.00025192,7]
[423536268,1780200801000,-191.05506048,0.0002745,2]
[423536260,1780200801000,-154.0,0.00026794,7]
[423536266,1780200801000,-459.643322,0.00027397,2]
[423536278,1780200801000,-545.17,0.00027711,7]
[423536270,1780200801000,-545.17,0.0002755,30]
[423536279,1780200801000,-161.33,0.00027833,7]
[423536267,1780200801000,-705.84,0.000274,2]
[423536280,1780200801000,-218.07,0.00027848,7]
[423536277,1780200801000,-705.84,0.00027628,7]
[423536276,1780200801000,-153.36,0.00027602,30]
[423536281,1780200801000,-710.58182065,0.00027848,7]
[423536274,1780200801000,-268.37,0.00027591,30]
[423536275,1780200801000,-330.47,0.00027591,30]
[423536272,1780200801000,-1101.55,0.0002758,30]
[423536271,1780200801000,-218.07,0.0002758,30]
[423536269,1780200801000,-150.0,0.00027521,2]
[423536273,1780200801000,-161.33,0.0002758,2]
[423536290,1780200802000,-174.46,0.00027591,30]
[423536289,1780200802000,-215.61611719,0.0001258,2]
[423536285,1780200802000,-500.0,8.169e-05,2]
[423536288,1780200802000,-199.80099485,0.00010778,2]
[423536286,1780200802000,-500.0,8.169e-05,2]
[423536283,1780200802000,-500.0,8.169e-05,2]
[423536284,1780200802000,-500.0,8.169e-05,2]
[423536282,1780200802000,-500.0,8.169e-05,2]
[423536291,1780200802000,-390.96817935,0.00027848,7]
[423536287,1780200802000,-643.13235405,8.169e-05,2]
[423536292,1780200802000,-705.84,0.00027857,30]
[423536297,1780200802000,-153.36,0.00028001,7]
[423536293,1780200802000,-268.37,0.00027858,7]
[423536305,1780200802000,-247.93235456,0.00028126,2]
[423536304,1780200802000,-268.37,0.00028126,2]
[423536303,1780200802000,-1101.55,0.00028117,2]
[423536301,1780200802000,-470.56,0.00028099,2]
[423536300,1780200802000,-161.33,0.00028086,30]
[423536294,1780200802000,-330.47,0.00027858,7]
[423536299,1780200802000,-705.84,0.00028085,2]
[423536296,1780200802000,-545.17,0.00027872,2]
[423536298,1780200802000,-545.17,0.00028033,30]
[423536302,1780200802000,-218.07,0.00028117,2]
[423536295,1780200802000,-154.0,0.00027863,2]
[423536323,1780200803000,-242.01375598,0.00028272,2]
[423536320,1780200803000,-169.21757761,0.00028272,2]
[423536321,1780200803000,-170.72634355,0.00028272,2]
[423536318,1780200803000,-162.03888511,0.00028272,2]
[423536319,1780200803000,-219.05517604,0.00028272,2]
[423536316,1780200803000,-157.89088789,0.00028272,2]
[423536317,1780200803000,-202.47408078,0.00028272,2]
[423536309,1780200803000,-165.23,0.00027944,7]
[423536315,1780200803000,-194.59589382,0.00028272,2]
[423536310,1780200803000,-82.53764544,0.00028126,2]
[423536312,1780200803000,-174.46,0.00028193,7]
[423536314,1780200803000,-193.80604549,0.00028272,2]
[423536324,1780200803000,-266.66415778,0.00028272,2]
[423536308,1780200803000,-165.23,0.00027602,30]
[423536306,1780200803000,-500.0,8.169e-05,2]
[423536307,1780200803000,-209.17060647,8.169e-05,2]
[423536311,1780200803000,-470.61,0.0002813,7]
[423536313,1780200803000,-545.17,0.00028194,7]
[423536322,1780200803000,-169.8114718,0.00028272,2]
[423536327,1780200803000,-167.56570423,0.00028272,2]
[423536342,1780200803000,-298.74188146,0.00028405,7]
[423536341,1780200803000,-153.36,0.00028401,2]
[423536335,1780200803000,-218.07,0.00028386,30]
[423536325,1780200803000,-181.48971132,0.00028272,2]
[423536337,1780200803000,-1101.55,0.00028386,30]
[423536336,1780200803000,-894.55,0.00028386,30]
[423536332,1780200803000,-152.0,0.00028318,7]
[423536331,1780200803000,-152.0,0.00028318,7]
[423536338,1780200803000,-268.37,0.00028394,30]
[423536333,1780200803000,-161.33,0.0002834,2]
[423536334,1780200803000,-545.17,0.00028355,2]
[423536340,1780200803000,-154.0,0.00028397,7]
[423536330,1780200803000,-165.23,0.00028287,2]
[423536329,1780200803000,-159.30484553,0.00028272,2]
[423536326,1780200803000,-252.01839188,0.00028272,2]
[423536328,1780200803000,-184.08693782,0.00028272,2]
[423536339,1780200803000,-330.47,0.00028394,30]
[423536349,1780200805000,-500.0,0.00013699,2]
[423536350,1780200805000,-500.0,0.00013699,2]
[423536347,1780200805000,-500.0,0.00013699,2]
[423536348,1780200805000,-500.0,0.00013699,2]
[423536345,1780200805000,-500.0,0.00013699,2]
[423536346,1780200805000,-500.0,0.00013699,2]
[423536343,1780200805000,-300.0,8.169e-05,2]
[423536358,1780200805000,-500.0,0.00013699,2]
[423536344,1780200805000,-500.0,8.169e-05,2]
[423536353,1780200805000,-500.0,0.00013699,2]
[423536363,1780200805000,-200.01,0.00013699,2]
[423536351,1780200805000,-500.0,0.00013699,2]
[423536355,1780200805000,-500.0,0.00013699,2]
[423536356,1780200805000,-500.0,0.00013699,2]
[423536354,1780200805000,-500.0,0.00013699,2]
[423536357,1780200805000,-500.0,0.00013699,2]
[423536360,1780200805000,-500.0,0.00013699,2]
[423536359,1780200805000,-500.0,0.00013699,2]
[423536361,1780200805000,-500.0,0.00013699,2]
[423536362,1780200805000,-500.0,0.00013699,2]
[423536352,1780200805000,-500.0,0.00013699,2]
[423536365,1780201018000,-500.0,0.00013894,2]
[423536366,1780201019000,-500.0,0.00013894,2]
[423536367,1780201020000,-500.0,0.00013894,2]
[423536368,1780201021000,-500.0,0.00013894,2]
[423536369,1780201022000,-500.0,0.00013894,2]
[423536375,1780201023000,-200.0,0.00013894,2]
[423536374,1780201023000,-300.0,0.00013893,2]
[423536372,1780201023000,-100.0,0.00015813,2]
[423536373,1780201023000,-400.0,0.00017731,2]
[423536370,1780201023000,-300.0,0.00015284,2]
[423536371,1780201023000,-200.0,0.00015813,2]
[423536378,1780201024000,-234.38388281,0.00015223,2]
[423536376,1780201024000,-15.61611719,0.00013894,2]
[423536379,1780201024000,-72.61611719,0.00015223,2]
[423536377,1780201024000,-250.0,0.00014,2]
[423536381,1780201024000,-100.0,0.00017731,2]
[423536382,1780201024000,-27.38388281,0.00017731,2]
[423536383,1780201024000,-472.61611719,0.00017731,2]
[423536384,1780201024000,-27.38388281,0.00018,2]
[423536380,1780201024000,-300.0,0.00016,2]
[423536388,1780201025000,-300.0,0.00018012,2]
[423536387,1780201025000,-38.23223438,0.00018,2]
[423536389,1780201025000,-161.76776562,0.00018012,2]
[423536386,1780201025000,-284.38388281,0.00018,2]
[423536385,1780201025000,-215.61611719,0.00013908,2]
[423536392,1780201026000,-300.0,0.00018012,2]
[423536393,1780201026000,-61.76776562,0.00018263,2]
[423536390,1780201026000,778.71,0.00026548,120]
[423536395,1780201026000,-61.76776562,0.00018263,2]
[423536394,1780201026000,-438.23223438,0.00018263,2]
[423536391,1780201026000,-138.23223438,0.00018012,2]
[423536398,1780201188000,420.147497,0.00025122,120]
[423536399,1780201219000,210.073749,0.00023494,120]
[423536402,1780201527000,500.0,0.00027449,120]
[423536403,1780201553000,500.0,0.00027449,120]
[423536418,1780201831000,-299.23692823,0.00010699,2]
[423536419,1780201831000,-150.0,0.00010699,2]
[423536421,1780201831000,-3042.51920587,0.000107,2]
[423536420,1780201831000,-271.56479894,0.000107,2]
[423536417,1780201831000,-500.0,0.00010699,2]
[423536414,1780201831000,-300.0,0.00010698,2]
[423536416,1780201831000,-500.0,0.00010699,2]
[423536415,1780201831000,-1200.0,0.00010698,2]
[423536422,1780201832000,-313.00338255,0.000107,2]
[423536423,1780201832000,-648.73496734,0.000107,2]
[423536424,1780201832000,-3988.50930711,0.000107,2]
[423536425,1780201832000,-1190.17672895,0.000107,2]
[423536426,1780201832000,-310.8,0.000107,2]
[423536462,1780201838000,-150.0,0.00013488,2]
[423536464,1780201838000,-1395.23903083,0.00013508,2]
[423536474,1780201838000,-647.20986165,0.00013699,2]
[423536473,1780201838000,-647.20986165,0.00013699,2]
[423536472,1780201838000,-647.20986165,0.00013699,2]
[423536469,1780201838000,-500.0,0.00013699,2]
[423536475,1780201838000,-647.20986165,0.00013699,2]
[423536468,1780201838000,-200.0,0.00013699,2]
[423536467,1780201838000,-150.0,0.00013654,2]
[423536465,1780201838000,-150.0,0.00013559,2]
[423536466,1780201838000,-150.0,0.0001363,2]
[423536486,1780201838000,-520.76780104,0.00013699,2]
[423536463,1780201838000,-150.0,0.00013488,2]
[423536470,1780201838000,-647.20986165,0.00013699,2]
[423536477,1780201838000,-647.20986165,0.00013699,2]
[423536479,1780201838000,-647.20986165,0.00013699,2]
[423536489,1780201838000,-520.76780104,0.00013699,2]
[423536481,1780201838000,-647.20986165,0.00013699,2]
[423536478,1780201838000,-647.20986165,0.00013699,2]
[423536488,1780201838000,-520.76780104,0.00013699,2]
[423536480,1780201838000,-647.20986165,0.00013699,2]
[423536484,1780201838000,-520.76780104,0.00013699,2]
[423536487,1780201838000,-520.76780104,0.00013699,2]
[423536476,1780201838000,-647.20986165,0.00013699,2]
[423536471,1780201838000,-647.20986165,0.00013699,2]
[423536461,1780201838000,-150.0,0.00013488,2]
[423536460,1780201838000,-150.0,0.00013488,2]
[423536435,1780201838000,-133632.39027352,0.000107,2]
[423536436,1780201838000,-8974.03752667,0.00011,2]
[423536439,1780201838000,-255.0,0.00011737,2]
[423536437,1780201838000,-53647.48491471,0.00011559,2]
[423536438,1780201838000,-297.20020296,0.00011659,2]
[423536440,1780201838000,-420.0,0.0001176,2]
[423536442,1780201838000,-590.1,0.00011795,2]
[423536441,1780201838000,-1680.0,0.00011768,2]
[423536443,1780201838000,-53647.48491466,0.0001193,2]
[423536449,1780201838000,-53647.48491466,0.00012673,2]
[423536444,1780201838000,-40526.3,0.00012055,2]
[423536458,1780201838000,-523.0816656,0.00013449,2]
[423536445,1780201838000,-2797.71085343,0.00012111,2]
[423536451,1780201838000,-433.0,0.00012871,2]
[423536447,1780201838000,-526.95,0.00012329,2]
[423536446,1780201838000,-53647.48491466,0.00012301,2]
[423536450,1780201838000,-1658.27148915,0.00012794,2]
[423536452,1780201838000,-587.0,0.00012926,2]
[423536454,1780201838000,-53647.48491466,0.00013044,2]
[423536453,1780201838000,-2351.0,0.00012945,2]
[423536456,1780201838000,-150.0,0.00013082,2]
[423536459,1780201838000,-150.0,0.00013488,2]
[423536455,1780201838000,-186.48,0.00013082,2]
[423536457,1780201838000,-53647.48491466,0.00013415,2]
[423536448,1780201838000,-1000.0,0.0001263,2]
[423536483,1780201838000,-647.20986165,0.00013699,2]
[423536482,1780201838000,-647.20986165,0.00013699,2]
[423536490,1780201838000,-520.76780104,0.00013699,2]